bitfinex/quotes_SOLUSD_20230111
["timestamp","ask_amount","ask_price","bid_price","bid_amount"]
[1673471211047,30.0,15.998,15.987,48.84]
[1673471211262,30.0,15.998,15.988,20.0]
[1673471211485,30.0,15.998,15.99,13.25]
[1673471211693,30.0,15.998,15.991,65.83]
[1673471211906,20.0,16.006,15.991,65.83]
[1673471215172,18.92,16.005,15.991,65.83]
[1673471217049,22.4073,16.005,15.991,65.83]
[1673471218422,3.4873,16.005,15.991,65.83]
[1673471219788,0.96,16.004,15.991,65.83]
[1673471220005,1.92,16.004,15.991,64.87]
[1673471220224,18.92,16.004,15.991,64.87]
[1673471221269,18.92,16.004,15.991,46.91]
[1673471222953,20.0,16.003,15.991,46.91]
[1673471223157,18.92,16.002,15.991,46.91]
[1673471223371,18.92,16.002,15.989,46.92]
[1673471227363,0.96,16.002,15.99,17.96]
[1673471227578,20.0,16.003,15.991,46.91]
[1673471230938,0.96,16.002,15.991,46.91]
[1673471231134,1.92,16.002,15.991,46.91]
[1673471234306,0.96,16.001,15.991,46.91]
[1673471234516,0.96,16.001,15.989,46.92]
[1673471237780,4.4473,16.001,15.989,46.92]
[1673471238413,3.4873,16.001,15.99,17.96]
[1673471238603,3.4873,16.001,15.991,46.91]
[1673471240395,1.92,16.0,15.991,46.91]
[1673471240613,18.92,16.0,15.989,46.92]
[1673471241132,18.92,16.0,15.988,20.0]
[1673471241331,18.92,16.0,15.987,20.0]
[1673471241540,32.14,16.0,15.988,46.92]
[1673471241751,32.14,16.0,15.987,20.0]
[1673471241986,20.0,15.999,15.986,46.93]
[1673471242187,44.77026,15.998,15.982,46.94]
[1673471242395,63.91522728,15.998,15.981,46.94]
[1673471242597,20.0,15.997,15.981,46.94]
[1673471242942,20.0,15.995,15.981,46.94]
[1673471243135,18.92,15.994,15.981,46.94]
[1673471243449,66.89,15.997,15.982,17.96]
[1673471243650,38.92,15.996,15.983,46.93]
[1673471243861,38.92,15.996,15.981,46.94]
[1673471244489,20.0,15.995,15.981,46.94]
[1673471244696,18.92,15.994,15.981,46.94]
[1673471245556,18.92,15.994,15.979,46.95]
[1673471245752,18.92,15.994,15.98,18.92]
[1673471245964,18.92,15.994,15.981,46.94]
[1673471249659,20.0,15.993,15.978,108.9384]
[1673471249872,18.92,15.992,15.979,46.95]
[1673471250184,20.0,15.991,15.979,46.95]
[1673471250375,18.92,15.99,15.979,46.95]
[1673471250587,18.92,15.99,15.978,108.9384]
[1673471251429,18.92,15.99,15.977,46.95]
[1673471251430,20.0,15.989,15.977,46.95]
[1673471251635,38.92,15.988,15.971,46.97]
[1673471252085,58.06496728,15.988,15.971,46.97]
[1673471252272,20.0,15.987,15.971,46.97]
[1673471252483,18.92,15.986,15.971,46.97]
[1673471252692,20.0,15.985,15.971,46.97]
[1673471252903,18.92,15.984,15.971,46.97]
[1673471253325,0.96,15.983,15.972,17.0]
[1673471253542,17.96,15.984,15.973,46.96]
[1673471254067,0.96,15.983,15.971,46.97]
[1673471255018,20.96,15.983,15.971,46.97]
[1673471255227,0.96,15.982,15.971,46.97]
[1673471255435,25.02000001,15.982,15.971,46.97]
[1673471259034,28.50730001,15.982,15.971,46.97]
[1673471261323,17.96,15.981,15.971,46.97]
[1673471261534,0.96,15.98,15.971,46.97]
[1673471262474,0.96,15.98,15.97,119.9419]
[1673471262906,0.96,15.979,15.97,119.9419]
[1673471263116,0.96,15.979,15.965,46.99]
[1673471263329,0.96,15.979,15.96,95.8643]
[1673471263330,0.96,15.978,15.963,46.99]
[1673471263546,0.96,15.977,15.961,47.0]
[1673471263745,20.96,15.978,15.961,47.0]
[1673471264158,20.96,15.978,15.962,20.0]
[1673471264374,0.96,15.977,15.963,46.99]
[1673471264579,0.96,15.978,15.963,46.99]
[1673471265252,0.96,15.978,15.964,18.92]
[1673471265438,0.96,15.978,15.965,66.99]
[1673471265652,0.96,15.978,15.966,134.7094]
[1673471265839,0.96,15.978,15.967,66.98]
[1673471266496,0.96,15.978,15.967,46.98]
[1673471266685,0.96,15.977,15.962,47.0]
[1673471267020,0.96,15.977,15.961,47.0]
[1673471267021,0.96,15.976,15.961,47.0]
[1673471267205,40.96,15.976,15.961,47.0]
[1673471267416,17.96,15.975,15.961,47.0]
[1673471267626,20.96,15.974,15.961,47.0]
[1673471267848,20.96,15.974,15.962,18.92]
[1673471268181,0.96,15.973,15.963,46.99]
[1673471268490,0.96,15.973,15.961,47.0]
[1673471269097,20.96,15.974,15.961,47.0]
[1673471269313,1.92,15.973,15.962,17.0]
[1673471269522,1.92,15.973,15.963,46.99]
[1673471270373,18.92,15.973,15.96,142.8643]
[1673471270578,18.92,15.973,15.961,17.0]
[1673471271115,18.92,15.973,15.96,142.8643]
[1673471271116,20.0,15.972,15.962,47.0]
[1673471271329,18.92,15.971,15.96,82.6243]
[1673471271521,66.54,15.97,15.941,20.0]
[1673471271862,65.9,15.969,15.95,13.27]
[1673471272053,20.0,15.968,15.95,13.27]
[1673471272266,38.92,15.967,15.951,47.03]
[1673471272785,20.0,15.966,15.951,47.03]
[1673471273125,18.92,15.965,15.951,47.03]
[1673471273518,0.96,15.965,15.951,47.03]
[1673471273856,20.0,15.968,15.951,47.03]
[1673471274043,18.92,15.967,15.951,47.03]
[1673471274256,20.0,15.966,15.951,47.03]
[1673471274485,18.92,15.965,15.951,47.03]
[1673471275852,18.92,15.965,15.952,38.92]
[1673471276055,18.92,15.965,15.953,47.02]
[1673471276265,20.0,15.966,15.953,47.02]
[1673471276589,20.0,15.969,15.954,21.92]
[1673471276786,20.0,15.969,15.955,64.02]
[1673471276997,20.0,15.969,15.956,1.92]
[1673471277535,18.92,15.968,15.955,47.02]
[1673471277727,20.0,15.966,15.952,47.03]
[1673471277938,18.92,15.965,15.951,47.03]
[1673471278355,20.0,15.967,15.951,47.03]
[1673471278566,18.92,15.966,15.951,47.03]
[1673471279315,18.92,15.966,15.952,0.96]
[1673471279510,18.92,15.966,15.953,47.02]
[1673471280152,22.4073,15.966,15.951,47.03]
[1673471284666,20.0,15.965,15.951,47.03]
[1673471284875,24.77026,15.964,15.948,47.04]
[1673471285079,71.76026,15.964,15.948,47.04]
[1673471286465,20.0,15.963,15.948,47.04]
[1673471286657,18.92,15.962,15.947,47.04]
[1673471286867,18.92,15.962,15.948,20.0]
[1673471287077,18.92,15.962,15.947,47.04]
[1673471287823,20.0,15.961,15.947,47.04]
[1673471288038,1.92,15.96,15.947,47.04]
[1673471288449,18.92,15.96,15.947,47.04]
[1673471289399,1250.0,15.959,15.947,47.04]
[1673471289716,57.96,15.958,15.941,47.06]
[1673471290032,1250.0,15.959,15.943,15.1944216]
[1673471290239,1250.0,15.962,15.944,47.05]
[1673471290448,67.0,15.961,15.945,117.0297]
[1673471290657,67.0,15.961,15.946,47.04]
[1673471291288,18.92,15.96,15.947,20.0]
[1673471291808,32.17,15.96,15.947,20.0]
[1673471292021,20.0,15.959,15.947,20.0]
[1673471292242,18.92,15.958,15.947,20.0]
[1673471292448,18.92,15.958,15.946,47.04]
[1673471292655,18.92,15.958,15.945,117.0297]
[1673471292656,67.01,15.957,15.945,117.0297]
[1673471292867,18.92,15.956,15.945,117.0297]
[1673471293075,20.0,15.957,15.945,117.0297]
[1673471293275,0.96,15.956,15.945,117.0297]
[1673471293487,18.92,15.956,15.945,117.0297]
[1673471294141,1250.0,15.955,15.945,117.0297]
[1673471294346,21.92,15.954,15.945,117.0297]
[1673471294545,1270.96,15.954,15.945,117.0297]
[1673471295411,20.0,15.952,15.941,47.06]
[1673471295622,18.92,15.951,15.941,47.06]
[1673471295937,20.0,15.952,15.941,47.06]
[1673471296564,1270.0,15.954,15.941,47.06]
[1673471296755,1.92,15.953,15.941,47.06]
[1673471297803,1250.0,15.954,15.942,37.0]
[1673471298012,1250.0,15.958,15.943,68.97]
[1673471298223,1250.0,15.959,15.944,115.0455]
[1673471298443,20.0,15.958,15.945,65.97]
[1673471298665,20.0,15.958,15.946,20.0]
[1673471298981,18.92,15.957,15.946,20.0]
[1673471299188,1250.0,15.956,15.944,47.05]
[1673471299397,20.0,15.954,15.944,47.05]
[1673471299825,1270.0,15.954,15.943,108.3983]
[1673471300979,1270.0,15.954,15.944,18.92]
[1673471301501,1270.0,15.954,15.943,108.3983]
[1673471302537,1250.0,15.954,15.944,18.92]
[1673471302748,1250.0,15.958,15.945,67.05]
[1673471303075,3.4873,15.954,15.946,0.96]
[1673471303270,3.4873,15.954,15.946,1.92]
[1673471303691,3.4873,15.954,15.946,18.92]
[1673471303907,3.4873,15.954,15.947,20.0]
[1673471306213,3.4873,15.954,15.946,20.0]
[1673471306423,3.4873,15.954,15.947,47.04]
[1673471307475,3.4873,15.954,15.946,67.04]
[1673471307702,3.4873,15.954,15.946,20.0]
[1673471307910,3.4873,15.954,15.945,20.0]
[1673471308232,3.4873,15.954,15.944,115.1619]
[1673471308435,3.4873,15.954,15.943,108.3983]
[1673471309490,0.96,15.953,15.943,108.3983]
[1673471309711,0.96,15.952,15.943,108.3983]
[1673471310340,0.96,15.951,15.943,108.3983]
[1673471310550,0.96,15.95,15.943,108.3983]
[1673471312976,0.96,15.949,15.939,47.06]
[1673471313194,0.96,15.95,15.939,164.4875]
[1673471313389,0.96,15.95,15.939,117.4275]
[1673471314772,17.96,15.951,15.939,117.4275]
[1673471314983,0.96,15.95,15.939,117.4275]
[1673471315614,87.01,15.957,15.941,20.0]
[1673471315803,18.92,15.954,15.942,47.05]
[1673471316240,20.0,15.958,15.943,20.0]
[1673471316463,20.0,15.958,15.944,47.05]
[1673471316651,20.0,15.958,15.945,20.0]
[1673471317273,0.96,15.957,15.945,20.0]
[1673471317488,18.92,15.957,15.945,20.0]
[1673471317697,20.0,15.956,15.945,20.0]
[1673471317906,18.92,15.955,15.945,20.0]
[1673471318330,20.0,15.958,15.945,20.0]
[1673471318541,20.0,15.958,15.945,135.1238]
[1673471318851,20.0,15.958,15.946,47.04]
[1673471319087,20.0,15.958,15.947,20.0]
[1673471319488,1250.0,15.959,15.947,20.0]
[1673471319699,18.92,15.958,15.947,20.0]
[1673471321289,20.0,15.957,15.947,20.0]
[1673471321484,20.0,15.957,15.946,20.0]
[1673471322654,20.0,15.957,15.941,47.06]
[1673471322873,38.92,15.956,15.941,47.06]
[1673471323080,67.02,15.955,15.939,47.06]
[1673471323289,18.92,15.954,15.939,47.06]
[1673471323603,20.0,15.953,15.939,47.06]
[1673471323814,18.92,15.952,15.939,47.06]
[1673471326544,18.92,15.952,15.938,117.9013]
[1673471327822,1.92,15.952,15.939,65.98]
[1673471328971,87.01,15.956,15.939,65.98]
[1673471329183,40.0,15.956,15.939,65.98]
[1673471329382,40.0,15.956,15.94,20.0]
[1673471329719,40.0,15.956,15.941,48.98]
[1673471329929,40.0,15.956,15.942,17.0]
[1673471330138,20.0,15.956,15.943,48.97]
[1673471330357,47.0,15.959,15.944,17.0]
[1673471330542,1365.1776,15.96,15.945,48.97]
[1673471330875,1365.1776,15.96,15.946,17.0]
[1673471331066,1365.1776,15.96,15.947,47.04]
[1673471331274,1365.1776,15.96,15.948,18.92]
[1673471331485,1365.1776,15.96,15.949,47.03]
[1673471332032,20.0,15.959,15.949,47.03]
[1673471332341,1365.1776,15.96,15.949,47.03]
[1673471332743,38.92,15.959,15.946,47.04]
[1673471332955,38.92,15.959,15.947,20.0]
[1673471333167,38.92,15.959,15.948,47.04]
[1673471334029,18.92,15.959,15.948,47.04]
[1673471334220,1.92,15.959,15.948,47.04]
[1673471336767,21.92,15.959,15.948,47.04]
[1673471337083,1250.0,15.96,15.948,47.04]
[1673471337288,1250.0,15.962,15.949,1.92]
[1673471337602,20.0,15.961,15.95,47.03]
[1673471338338,20.0,15.961,15.947,20.0]
[1673471338543,1.92,15.96,15.947,20.0]
[1673471339387,18.92,15.96,15.947,20.0]
[1673471339598,18.92,15.96,15.948,47.04]
[1673471343361,18.92,15.96,15.947,20.0]
[1673471343362,20.0,15.959,15.947,20.0]
[1673471343574,65.93,15.958,15.941,47.06]
[1673471343795,85.93,15.958,15.941,47.06]
[1673471344139,20.0,15.957,15.941,47.06]
[1673471344448,20.0,15.955,15.941,47.06]
[1673471344618,1.92,15.954,15.942,18.92]
[1673471344955,1.92,15.954,15.943,47.05]
[1673471347586,17.0,15.956,15.943,47.05]
[1673471347799,0.96,15.955,15.943,47.05]
[1673471348106,1.92,15.955,15.943,47.05]
[1673471350631,0.96,15.955,15.943,47.05]
[1673471350842,20.0,15.957,15.944,18.92]
[1673471351053,20.0,15.957,15.943,47.05]
[1673471351054,38.92,15.956,15.943,47.05]
[1673471351243,21.92,15.956,15.944,1.92]
[1673471351453,21.92,15.956,15.944,18.92]
[1673471351978,21.92,15.956,15.944,1.92]
[1673471352296,3.4873,15.96,15.944,1.92]
[1673471352512,3.4873,15.96,15.945,47.05]
[1673471352729,3.4873,15.96,15.946,139.3829]
[1673471352933,3.4873,15.96,15.947,65.0]
[1673471353134,3.4873,15.96,15.948,0.96]
[1673471353346,3.4873,15.96,15.949,47.03]
[1673471355996,1.92,15.959,15.949,47.03]
[1673471356181,0.96,15.959,15.947,47.04]
[1673471356389,0.96,15.958,15.947,47.04]
[1673471357878,20.0,15.961,15.948,0.96]
[1673471358093,20.0,15.961,15.949,47.99]
[1673471358284,20.0,15.961,15.95,17.96]
[1673471358825,20.0,15.961,15.95,64.99]
[1673471359647,20.0,15.961,15.95,17.96]
[1673471359864,20.0,15.961,15.95,64.99]
[1673471363669,19.90072696,15.961,15.95,64.99]
[1673471363881,23.38802696,15.961,15.95,64.99]
[1673471364064,23.4873,15.961,15.95,64.03]
[1673471364400,17.0,15.96,15.95,47.03]
[1673471364613,17.0,15.96,15.947,47.04]
[1673471364932,1.92,15.959,15.947,47.04]
[1673471365660,21.92,15.959,15.947,47.04]
[1673471366605,20.0,15.957,15.945,47.05]
[1673471366817,18.92,15.956,15.941,47.06]
[1673471367135,20.0,15.955,15.941,47.06]
[1673471367351,18.92,15.954,15.941,47.06]
[1673471371029,1.92,15.954,15.942,18.92]
[1673471371427,1.92,15.954,15.943,47.05]
[1673471375437,21.92,15.954,15.941,47.06]
[1673471377642,17.0,15.955,15.942,20.96]
[1673471377967,194.77341507,15.96,15.943,65.01]
[1673471378151,128.4412,15.96,15.944,154.6992]
[1673471378356,128.4412,15.96,15.945,65.01]
[1673471378585,128.4412,15.96,15.946,150.1596]
[1673471378798,128.4412,15.96,15.947,48.0]
[1673471378993,128.4412,15.96,15.948,0.96]
[1673471379202,128.4412,15.96,15.949,47.99]
[1673471379412,115.1512,15.96,15.949,47.99]
[1673471380058,115.1512,15.96,15.949,0.96]
[1673471380472,115.1512,15.96,15.947,47.04]
[1673471380688,1.92,15.959,15.947,47.04]
[1673471382054,115.1512,15.96,15.948,37.96]
[1673471382265,115.1512,15.96,15.947,47.04]
[1673471382475,128.4812,15.96,15.947,47.04]
[1673471382665,128.4812,15.96,15.946,129.1996]
[1673471382878,20.0,15.959,15.946,129.1996]
[1673471383301,1.92,15.958,15.946,129.1996]
[1673471383521,18.92,15.958,15.946,129.1996]
[1673471384563,0.96,15.958,15.947,47.04]
[1673471384772,0.96,15.957,15.947,47.04]
[1673471384988,0.96,15.956,15.947,47.04]
[1673471385198,0.96,15.955,15.946,109.1996]
[1673471385422,0.96,15.954,15.945,47.05]
[1673471385634,0.96,15.953,15.942,47.05]
[1673471385857,0.96,15.952,15.941,109.3081]
[1673471386171,0.96,15.951,15.941,109.3081]
[1673471386364,0.96,15.95,15.941,109.3081]
[1673471386778,0.96,15.949,15.941,109.3081]
[1673471386998,0.96,15.949,15.937,47.07]
[1673471387220,0.96,15.949,15.93,67.17]
[1673471387221,0.96,15.948,15.934,166.3473]
[1673471387418,0.96,15.948,15.937,20.0]
[1673471387419,0.96,15.947,15.937,20.0]
[1673471387856,0.96,15.946,15.937,20.0]
[1673471388563,0.96,15.946,15.937,67.07]
[1673471388801,20.0,15.951,15.937,67.07]
[1673471388989,18.92,15.95,15.937,67.07]
[1673471390050,20.0,15.953,15.937,67.07]
[1673471390275,13.33,15.95,15.934,119.2673]
[1673471390470,20.0,15.948,15.934,119.2673]
[1673471390683,20.0,15.947,15.934,119.2673]
[1673471391405,38.92,15.946,15.934,119.2673]
[1673471392253,38.92,15.946,15.931,47.09]
[1673471392583,20.0,15.944,15.93,13.41]
[1673471392773,1.92,15.943,15.932,20.0]
[1673471392978,1.92,15.943,15.933,47.08]
[1673471393419,1.92,15.943,15.931,47.09]
[1673471393820,17.0,15.946,15.932,17.96]
[1673471394157,1.92,15.945,15.933,47.08]
[1673471395410,1.92,15.945,15.931,47.09]
[1673471395724,20.0,15.943,15.931,47.09]
[1673471395941,65.97,15.942,15.927,47.1]
[1673471396257,18.92,15.942,15.929,47.09]
[1673471396475,67.04,15.946,15.93,13.41]
[1673471396781,20.0,15.946,15.931,48.05]
[1673471396977,20.0,15.946,15.931,66.01]
[1673471397820,1.92,15.945,15.931,66.01]
[1673471398051,18.92,15.945,15.931,47.09]
[1673471398244,20.0,15.944,15.931,47.09]
[1673471398458,18.92,15.943,15.929,47.09]
[1673471398664,18.92,15.943,15.93,17.0]
[1673471398864,18.92,15.943,15.931,47.09]
[1673471400354,1.92,15.943,15.932,17.0]
[1673471400574,1.92,15.943,15.933,47.08]
[1673471402581,0.96,15.943,15.933,47.08]
[1673471402884,20.0,15.946,15.933,47.08]
[1673471403096,18.92,15.945,15.933,47.08]
[1673471403933,3.4873,15.943,15.933,47.08]
[1673471404142,3.4873,15.943,15.934,40.0]
[1673471404354,3.4873,15.943,15.935,65.04]
[1673471404567,20.0,15.952,15.937,20.0]
[1673471404876,20.0,15.952,15.938,65.03]
[1673471405096,20.0,15.952,15.939,0.96]
[1673471405278,20.0,15.952,15.94,47.06]
[1673471405714,13.42,15.95,15.935,47.08]
[1673471405920,18.92,15.949,15.936,20.0]
[1673471406129,18.92,15.949,15.937,47.07]
[1673471406339,1250.0,15.948,15.932,47.08]
[1673471406554,38.92,15.947,15.933,18.92]
[1673471406776,1270.0,15.946,15.934,47.08]
[1673471406966,1.92,15.945,15.934,47.08]
[1673471407482,18.92,15.945,15.931,47.09]
[1673471407693,20.0,15.944,15.931,47.09]
[1673471407933,1.92,15.943,15.929,47.09]
[1673471408335,18.92,15.943,15.928,77.8923]
[1673471408546,18.92,15.943,15.929,47.09]
[1673471409295,20.0,15.942,15.929,47.09]
[1673471409483,17.96,15.941,15.929,47.09]
[1673471409700,18.92,15.941,15.929,47.09]
[1673471410225,18.92,15.941,15.929,158.5456]
[1673471411401,18.92,15.941,15.929,111.4556]
[1673471412025,18.92,15.941,15.929,158.5456]
[1673471413295,18.92,15.941,15.929,111.4556]
[1673471413908,17.0,15.94,15.929,158.5456]
[1673471414120,20.0,15.943,15.929,158.5456]
[1673471415284,0.96,15.942,15.929,158.5456]
[1673471415495,18.92,15.942,15.929,158.5456]
[1673471418444,18.92,15.942,15.929,111.4556]
[1673471419069,18.92,15.942,15.929,158.5456]
[1673471419794,1.92,15.942,15.929,158.5456]
[1673471420971,21.92,15.942,15.929,158.5456]
[1673471421181,17.0,15.941,15.929,158.5456]
[1673471421372,1.92,15.94,15.929,158.5456]
[1673471421801,118.8737,15.944,15.929,158.5456]
[1673471422017,118.8737,15.944,15.93,37.0]
[1673471422239,118.8737,15.944,15.931,47.09]
[1673471423171,18.92,15.943,15.931,47.09]
[1673471427487,18.92,15.943,15.93,64.09]
[1673471427679,20.0,15.942,15.93,47.09]
[1673471427884,18.92,15.941,15.93,47.09]
[1673471428308,1.92,15.941,15.93,47.09]
[1673471432009,13.33,15.94,15.93,47.09]
[1673471432209,18.92,15.939,15.929,158.5456]
[1673471432420,18.92,15.939,15.929,111.4556]
[1673471434408,185.06866728,15.944,15.93,20.0]
[1673471434633,118.8737,15.944,15.931,47.09]
[1673471435377,20.0,15.943,15.931,47.09]
[1673471435562,124.72396,15.944,15.93,47.09]
[1673471435768,20.96,15.943,15.93,47.09]
[1673471435997,13.32,15.94,15.93,47.09]
[1673471436197,18.92,15.939,15.929,158.5456]
[1673471436408,1.92,15.939,15.929,158.5456]
[1673471438608,18.92,15.939,15.929,158.5456]
[1673471439467,0.96,15.939,15.929,158.5456]
[1673471439688,124.72396,15.944,15.929,158.5456]
[1673471439996,20.0,15.942,15.929,47.09]
[1673471440203,18.92,15.941,15.928,77.8923]
[1673471440415,18.92,15.941,15.929,47.09]
[1673471440732,18.92,15.941,15.928,77.8923]
[1673471440925,18.92,15.941,15.929,47.09]
[1673471441256,5.85026,15.942,15.93,20.0]
[1673471441449,170.92814852,15.944,15.93,20.0]
[1673471441681,118.8737,15.944,15.931,47.09]
[1673471442384,118.8737,15.944,15.931,161.5283]
[1673471443875,18.92,15.943,15.931,161.5283]
[1673471444073,1235.886606,15.923,15.91,20.0]
[1673471444284,132.23116892,15.942,15.889,114.4383]
[1673471444285,26.75,15.92,15.889,114.4383]
[1673471444489,52.97026,15.919,15.889,114.4383]
[1673471444720,396.1,15.917,15.89,27.07852727]
[1673471444920,6.81026,15.916,15.891,20.0]
[1673471445245,6.81026,15.916,15.892,9.88]
[1673471445246,13.42,15.91,15.892,9.88]
[1673471445470,13.42,15.91,15.892,26.30852727]
[1673471445659,13.42,15.91,15.893,16.42852727]
[1673471445864,13.42,15.91,15.894,9.875]
[1673471446286,67.0,15.91,15.894,9.875]
[1673471446497,67.0,15.91,15.891,16.42852727]
[1673471446710,13.33,15.91,15.892,10.26]
[1673471447044,13.33,15.91,15.892,27.76]
[1673471447445,20.0,15.915,15.892,27.76]
[1673471447770,18.92,15.914,15.892,27.76]
[1673471448505,18.92,15.914,15.892,44.18852727]
[1673471449327,18.92,15.914,15.893,18.92]
[1673471449546,20.0,15.916,15.9,13.3]
[1673471449756,13.43,15.92,15.901,40.7]
[1673471449974,67.12,15.919,15.901,148.5981]
[1673471450164,20.0,15.918,15.901,125.8581]
[1673471450589,47.13,15.917,15.901,108.8581]
[1673471451230,38.92,15.916,15.901,108.8581]
[1673471452058,20.0,15.916,15.902,18.86]
[1673471452275,20.0,15.916,15.903,0.96]
[1673471452488,20.0,15.917,15.902,18.86]
[1673471452713,67.13,15.917,15.902,18.86]
[1673471453112,20.0,15.917,15.902,18.86]
[1673471453327,18.92,15.916,15.902,18.86]
[1673471455765,18.92,15.916,15.903,17.0]
[1673471455980,17.0,15.916,15.903,17.0]
[1673471456499,13.33,15.92,15.904,20.0]
[1673471456705,396.1,15.923,15.905,45.12]
[1673471456937,396.1,15.923,15.907,20.0]
[1673471457245,396.1,15.923,15.908,43.73]
[1673471457660,396.1,15.923,15.909,119.2814]
[1673471457871,18.92,15.922,15.909,119.2814]
[1673471458619,396.1,15.923,15.909,119.2814]
[1673471458932,396.1,15.923,15.91,31.67]
[1673471459770,0.96,15.922,15.91,31.67]
[1673471459977,18.92,15.922,15.91,31.67]
[1673471460612,47.1,15.927,15.91,51.67]
[1673471460821,20.0,15.926,15.91,51.67]
[1673471461241,20.0,15.926,15.91,31.67]
[1673471461449,20.0,15.925,15.91,31.67]
[1673471461643,1270.0,15.925,15.91,31.67]
[1673471462295,0.96,15.924,15.91,31.67]
[1673471462498,17.96,15.924,15.91,31.67]
[1673471462912,20.0,15.923,15.91,31.67]
[1673471463225,0.96,15.922,15.91,31.67]
[1673471463535,20.0,15.923,15.91,31.67]
[1673471463952,1267.96,15.924,15.91,31.67]
[1673471464603,1250.96,15.924,15.911,17.0]
[1673471464814,1250.0,15.924,15.911,17.0]
[1673471465655,1250.0,15.925,15.911,33.42852727]
[1673471465850,1250.0,15.925,15.912,64.28]
[1673471466278,1250.0,15.925,15.913,17.0]
[1673471466477,1250.0,15.925,15.914,0.96]
[1673471466900,1250.0,15.925,15.913,17.0]
[1673471467106,1250.0,15.925,15.911,47.15]
[1673471467322,1250.0,15.925,15.89,128.28341964]
[1673471467323,1250.0,15.925,15.908,16.42852727]
[1673471467532,38.92,15.924,15.909,166.4314]
[1673471467737,38.92,15.924,15.909,119.2814]
[1673471467953,20.0,15.923,15.909,119.2814]
[1673471468178,1.92,15.922,15.909,119.2814]
[1673471468371,18.92,15.922,15.909,119.2814]
[1673471469646,1.92,15.922,15.909,119.2814]
[1673471469842,0.96,15.922,15.909,119.2814]
[1673471470381,0.96,15.921,15.909,119.2814]
[1673471470594,0.96,15.92,15.909,119.2814]
[1673471470788,17.96,15.922,15.909,119.2814]